bitfinex/quotes_SOLUSD_20260213
["timestamp","ask_amount","ask_price","bid_price","bid_amount"]
[1770997963000,38.18,83.386,83.351,0.49918588]
[1770997963380,10.66536118,83.38,83.35,10.66536118]
[1770997963882,11.9934276,83.379,83.34,11.16454706]
[1770997964086,0.47535813,83.369,83.33,10.66536118]
[1770997964286,11.9934276,83.379,83.35,10.66536118]
[1770997964287,41.9769966,83.379,83.35,10.66536118]
[1770997964485,41.9769966,83.379,83.34,11.16454706]
[1770997965292,38.2,83.378,83.35,10.66536118]
[1770997965493,10.66536118,83.37,83.326,0.49918588]
[1770997965694,0.47535813,83.339,83.3,10.66536118]
[1770997965990,12.00062403,83.329,83.292,0.49918588]
[1770997966183,11.99875212,83.342,83.31,10.66536118]
[1770997966390,11.99812266,83.347,83.311,0.49918588]
[1770997966900,38.2,83.35,83.32,10.66536118]
[1770997967102,107.92985822,83.388,83.284,5.36086188]
[1770997967103,10.66536118,83.39,83.341,0.49918588]
[1770997967300,0.47535813,83.393,83.36,10.66536118]
[1770997967610,10.66536118,83.37,83.34,10.66536118]
[1770997968001,10.66536118,83.37,83.331,0.49918588]
[1770997968002,50.19486619,83.369,83.331,0.49918588]
[1770997968208,80.18203168,83.369,83.331,0.49918588]
[1770997968389,10.66536118,83.36,83.32,10.66536118]
[1770997968587,41.98203168,83.369,83.31,10.66536118]
[1770997968588,10.66536118,83.35,83.31,10.66536118]
[1770997968908,0.47535813,83.349,83.31,10.66536118]
[1770997969097,38.2,83.348,83.31,10.66536118]
[1770997969417,10.66536118,83.34,83.31,10.66536118]
[1770997969708,38.2,83.348,83.31,10.66536118]
[1770997970111,11.99803232,83.347,83.32,10.66536118]
[1770997970308,10.66536118,83.34,83.31,10.66536118]
[1770997970606,10.66536118,83.34,83.302,0.49918588]
[1770997970797,10.66536118,83.33,83.302,0.49918588]
[1770997971002,38.2,83.339,83.289,4.61729252]
[1770997971003,10.66536118,83.32,83.289,0.49918588]
[1770997971196,10.66536118,83.3,83.277,0.49918588]
[1770997971395,38.2,83.299,83.264,0.49918588]
[1770997971606,10.66536118,83.29,83.264,0.49918588]
[1770997971804,0.47535813,83.309,83.27,10.66536118]
[1770997972006,38.2,83.308,83.281,0.49918588]
[1770997972307,50.20367703,83.308,83.281,0.49918588]
[1770997973015,107.99313691,83.339,83.28,10.66536118]
[1770997973016,12.00177626,83.321,83.29,11.16454706]
[1770997973217,12.00177626,83.321,83.291,0.49918588]
[1770997973917,10.66536118,83.31,83.27,22.67448811]
[1770997974092,10.66536118,83.3,83.268,0.49918588]
[1770997975198,10.66536118,83.3,83.251,34.42]
[1770997975199,10.66536118,83.29,83.257,0.49918588]
[1770997975604,10.66536118,83.29,83.26,10.66536118]
[1770997975897,10.66536118,83.29,83.257,0.49918588]
[1770997976213,42.02235588,83.289,83.257,0.49918588]
[1770997976510,12.00638739,83.289,83.261,0.49918588]
[1770997976695,42.02235588,83.289,83.25,10.66536118]
[1770997976896,42.02235588,83.289,83.25,11.16454706]
[1770997977098,38.22,83.29,83.261,0.49918588]
[1770997977500,10.66536118,83.3,83.261,0.49918588]
[1770997977708,12.00494603,83.299,83.27,10.66536118]
[1770997978404,0.47535813,83.289,83.25,10.66536118]
[1770997978604,10.66536118,83.29,83.252,0.49918588]
[1770997978815,10.66536118,83.29,83.26,10.66536118]
[1770997978999,10.66536118,83.29,83.252,0.49918588]
[1770997979398,10.66536118,83.29,83.26,10.66536118]
[1770997979598,12.00494603,83.299,83.261,0.49918588]
[1770997980203,11.14071931,83.29,83.25,10.66536118]
[1770997980405,12.0078291,83.279,83.241,0.49918588]
[1770997980609,10.66536118,83.27,83.23,11.16454706]
[1770997980803,10.66536118,83.27,83.231,0.48080514]
[1770997981003,38.28,83.278,83.221,0.48080514]
[1770997981004,0.49736943,83.259,83.221,0.48080514]
[1770997981302,10.66536118,83.26,83.23,10.66536118]
[1770997981704,10.66536118,83.26,83.221,0.48080514]
[1770997982121,0.49736943,83.259,83.221,0.48080514]
[1770997982298,12.0121563,83.249,83.21,11.14616632]
[1770997982497,0.49736943,83.239,83.201,0.48080514]
[1770997982701,42.04254705,83.249,83.21,11.14616632]
[1770997983005,10.70572386,83.25,83.221,0.48080514]
[1770997983199,0.49736943,83.284,83.231,0.48080514]
[1770997983519,10.70572386,83.34,83.21,10.70572386]
[1770997983520,0.49736943,83.249,83.21,10.70572386]
[1770997983720,38.28,83.257,83.221,0.48080514]
[1770997983918,10.70572386,83.25,83.221,0.48080514]
[1770997984106,38.28,83.257,83.221,0.48080514]
[1770997984312,38.28,83.257,83.23,10.70572386]
[1770997984622,12.01071355,83.259,83.224,12.01564017]
[1770997984817,12.00739655,83.282,83.25,10.70572386]
[1770997985025,47.99895617,83.336,83.261,0.48080514]
[1770997985026,12.00494603,83.299,83.261,0.48080514]
[1770997985212,0.49736943,83.298,83.261,0.48080514]
[1770997985806,10.70572386,83.29,83.251,0.48080514]
[1770997986123,11.20309329,83.27,83.24,10.70572386]
[1770997986315,0.49736943,83.269,83.23,10.70572386]
[1770997986504,12.01071355,83.259,83.23,10.70572386]
[1770997986702,38.28,83.274,83.209,38.97729252]
[1770997986703,10.70572386,83.28,83.241,0.48080514]
[1770997986906,50.2878291,83.279,83.241,0.48080514]
[1770997987123,12.0078291,83.279,83.251,0.48080514]
[1770997987323,12.00434617,83.304,83.27,10.70572386]
[1770997988103,10.70572386,83.3,83.27,10.70572386]
[1770997988507,12.0022084,83.318,83.282,0.48080514]
[1770997988721,10.70572386,83.31,83.28,10.70572386]
[1770997988910,12.0022084,83.318,83.281,0.48080514]
[1770997989722,10.70572386,83.31,83.281,0.48080514]
[1770997989909,0.49736943,83.309,83.27,10.70572386]
[1770997990604,12.0036491,83.308,83.271,0.48080514]
[1770997990805,10.70572386,83.3,83.271,12.48968729]
[1770997991225,10.70572386,83.29,83.26,11.186529]
[1770997991727,38.32,83.299,83.271,0.48080514]
[1770997992602,38.32,83.299,83.26,10.70572386]
[1770997992603,10.70572386,83.28,83.241,12.01331074]
[1770997992916,38.34,83.282,83.25,10.70572386]
[1770997993111,10.70572386,83.27,83.24,10.70572386]
[1770997994222,10.70572386,83.28,83.241,0.48080514]
[1770997994447,11.20309329,83.28,83.24,10.70572386]
[1770997994717,10.70572386,83.28,83.241,0.48080514]
[1770997995102,12.00815108,83.277,83.241,0.48080514]
[1770997995522,12.00815108,83.277,83.229,30.03751967]
[1770997995523,0.49736943,83.269,83.235,12.01410165]
[1770997996017,0.49736943,83.269,83.23,10.70572386]
[1770997996018,10.70572386,83.26,83.218,0.48080514]
[1770997996226,10.70572386,83.26,83.221,0.48080514]
[1770997996721,12.01035955,83.262,83.232,0.48080514]
[1770997997108,12.00797329,83.278,83.241,0.48080514]
[1770997997305,38.34,83.273,83.241,0.48080514]
[1770997997510,10.70572386,83.27,83.241,0.48080514]
[1770997998202,0.49736943,83.259,83.22,11.186529]
[1770997998403,0.49736943,83.259,83.221,12.01619783]
[1770997998616,0.49736943,83.259,83.21,0.48080514]
[1770997998617,0.49736943,83.249,83.213,12.01721404]
[1770997998825,12.01230059,83.248,83.22,11.186529]
[1770997999413,12.01071355,83.259,83.221,0.48080514]
[1770997999615,12.01071355,83.259,83.23,10.70572386]
[1770997999930,12.01005066,83.264,83.23,11.186529]
[1770998000305,10.70572386,83.27,83.23,11.186529]
[1770998000524,38.38,83.276,83.24,10.70572386]
[1770998000707,10.70572386,83.27,83.24,10.70572386]
[1770998000909,80.40891589,83.276,83.23,0.48080514]
[1770998000910,0.49736943,83.259,83.23,0.48080514]
[1770998001227,0.49736943,83.239,83.19,10.70572386]
[1770998001420,0.49736943,83.229,83.191,12.02053106]
[1770998001728,0.49736943,83.239,83.194,4.61729252]
[1770998001955,10.70572386,83.25,83.22,10.70572386]
[1770998002225,4.61729252,83.283,83.22,10.70572386]
[1770998002226,0.49736943,83.287,83.24,10.70572386]
[1770998002404,0.49736943,83.287,83.229,4.61729252]
[1770998002405,12.00739234,83.283,83.25,10.70572386]
[1770998002601,12.00739234,83.283,83.24,10.70572386]
[1770998002602,11.20309329,83.27,83.24,10.70572386]
[1770998002806,12.50664058,83.269,83.24,10.70572386]
[1770998003001,12.50664058,83.269,83.241,12.01331074]
[1770998003613,12.50664058,83.269,83.232,30.51701414]
[1770998003614,0.49736943,83.268,83.232,12.4953259]
[1770998003815,0.49736943,83.268,83.24,10.70572386]
[1770998004024,0.49736943,83.25,83.22,10.70572386]
[1770998004727,10.70572386,83.26,83.23,10.70572386]
[1770998004929,12.01071355,83.259,83.23,10.70572386]
[1770998005230,12.01071355,83.259,83.24,10.70572386]
[1770998005433,12.01071355,83.259,83.231,0.48080514]
[1770998005615,12.01071355,83.259,83.231,12.49555925]
[1770998005822,12.01071355,83.259,83.232,0.48080514]
[1770998006025,0.49736943,83.258,83.231,12.01475411]
[1770998006529,0.49736943,83.258,83.22,0.48080514]
[1770998006530,0.49736943,83.258,83.22,11.186529]
[1770998006723,0.49736943,83.258,83.23,10.70572386]
[1770998006918,12.01071355,83.259,83.231,12.49555925]
[1770998007320,0.49736943,83.267,83.231,0.48080514]
[1770998007516,0.49736943,83.239,83.181,0.48080514]
[1770998007727,0.49736943,83.239,83.2,10.70572386]
[1770998007957,0.49736943,83.239,83.201,0.48080514]
[1770998008235,0.49736943,83.249,83.211,0.48080514]
[1770998008624,0.49736943,83.257,83.221,0.48080514]
[1770998008825,10.70572386,83.25,83.221,0.48080514]
[1770998009032,0.49736943,83.268,83.231,0.48080514]
[1770998009218,0.49736943,83.268,83.222,12.01605344]
[1770998009424,0.49736943,83.259,83.223,0.48080514]
[1770998010436,0.49736943,83.249,83.22,10.70572386]
[1770998010643,0.49736943,83.249,83.202,30.04733422]
[1770998010644,0.49150141,83.239,83.202,30.50962076]
[1770998010834,0.49150141,83.239,83.21,10.70572386]
[1770998011141,0.49150141,83.237,83.202,0.46228654]
[1770998011332,0.49150141,83.229,83.197,12.01965207]
[1770998011739,0.49150141,83.219,83.181,34.28]
[1770998011948,10.70572386,83.22,83.191,0.46228654]
[1770998012443,0.49150141,83.229,83.191,0.46228654]
[1770998012633,10.70572386,83.22,83.191,0.46228654]
[1770998013140,12.01648661,83.219,83.191,0.46228654]
[1770998013336,0.49150141,83.209,83.176,12.02263753]
[1770998013923,0.49150141,83.209,83.179,12.02219777]
[1770998014125,10.70572386,83.2,83.17,0.1]
[1770998014342,0.49150141,83.189,83.151,12.48860011]
[1770998014540,10.70572386,83.19,83.161,0.46228654]
[1770998014726,11.19722527,83.2,83.161,0.46228654]
[1770998015231,12.01937523,83.199,83.162,0.46228654]
[1770998015620,0.49150141,83.198,83.162,0.46228654]
[1770998016142,0.49150141,83.179,83.15,0.1]
[1770998016339,10.70572386,83.18,83.15,0.1]
[1770998016340,38.44,83.178,83.15,0.1]
[1770998016548,10.70572386,83.18,83.151,0.46228654]
[1770998016843,38.42,83.181,83.151,0.46228654]
[1770998017042,10.70572386,83.17,83.15,0.1]
[1770998017341,12.02385532,83.168,83.15,0.1]
[1770998018443,12.02385532,83.168,83.14,0.1]
[1770998018444,10.70572386,83.16,83.14,0.1]
[1770998018742,0.4799474,83.158,83.13,0.1]
[1770998018940,38.46,83.157,83.13,0.1]
[1770998019240,10.70572386,83.15,83.13,0.1]
[1770998019431,12.02660284,83.149,83.13,0.1]
[1770998020338,12.02596207,83.154,83.13,10.80572386]
[1770998021037,12.02596207,83.154,83.13,0.1]
[1770998021722,0.4799474,83.149,83.13,0.1]
[1770998022331,49.24572386,83.15,83.13,0.1]
[1770998022644,38.54,83.15,83.13,0.1]
[1770998023226,0.4799474,83.139,83.11,0.1]
[1770998023526,10.70572386,83.16,83.121,0.47896715]
[1770998023720,50.60515662,83.159,83.13,10.70572386]
[1770998023922,10.70572386,83.15,83.121,0.47896715]
[1770998024639,0.4799474,83.149,83.111,0.47896715]
[1770998025247,10.70572386,83.14,83.111,0.47896715]
[1770998025448,38.6,83.139,83.111,0.47896715]
[1770998025646,12.02819408,83.138,83.111,0.47896715]
[1770998025853,12.02819408,83.138,83.11,0.1]
[1770998025854,0.4799474,83.129,83.11,0.1]
[1770998026027,38.62,83.132,83.111,0.47896715]
[1770998026227,38.62,83.139,83.112,0.47896715]
[1770998026439,0.4799474,83.138,83.11,0.1]
[1770998026634,0.4799474,83.129,83.11,0.1]
[1770998027628,12.02964103,83.128,83.11,0.1]
[1770998028227,12.02904263,83.133,83.11,0.1]
[1770998028432,50.64817138,83.139,83.11,0.57896715]
[1770998028755,38.62,83.139,83.111,0.47896715]
[1770998028928,50.64814057,83.139,83.111,0.47896715]
[1770998029853,12.02814057,83.139,83.111,0.47896715]
[1770998030067,41.24823615,83.16,83.13,10.70572386]
[1770998030352,10.70572386,83.15,83.121,0.47896715]
[1770998030534,0.4799474,83.158,83.121,0.47896715]
[1770998030736,10.70572386,83.15,83.121,0.47896715]
[1770998031058,0.4799474,83.158,83.121,0.47896715]
[1770998031227,10.70572386,83.15,83.121,0.47896715]
[1770998032035,10.70572386,83.14,83.111,12.03210164]
[1770998032342,0.4799474,83.148,83.12,10.70572386]
[1770998032544,10.70572386,83.17,83.131,0.47896715]
[1770998032750,10.70572386,83.21,83.161,0.47896715]
[1770998032936,50.73504283,83.229,83.191,0.47896715]
[1770998033452,0.4799474,83.228,83.19,10.70572386]
[1770998034149,12.01533156,83.227,83.19,10.70572386]
[1770998034351,12.01533156,83.227,83.2,10.70572386]
[1770998034537,50.75533156,83.227,83.2,10.70572386]
[1770998035051,0.4799474,83.226,83.19,10.70572386]
[1770998035551,42.05366046,83.227,83.19,10.70572386]
[1770998035552,0.4799474,83.224,83.19,10.70572386]
[1770998036139,12.01590906,83.223,83.2,10.70572386]
[1770998036446,0.4799474,83.219,83.18,10.70572386]
[1770998036847,0.4799474,83.219,83.19,10.70572386]
[1770998037052,0.4799474,83.219,83.181,12.50094332]
[1770998037053,12.01590906,83.223,83.2,10.70572386]
[1770998037352,12.01590906,83.223,83.191,0.47896715]
[1770998037553,12.01590906,83.223,83.181,0.47896715]
[1770998037554,0.4799474,83.219,83.181,0.47896715]
[1770998038233,10.70572386,83.21,83.172,12.02314233]
[1770998038429,0.4799474,83.209,83.17,10.70572386]
[1770998038650,38.78,83.208,83.17,10.70572386]
[1770998038959,0.4799474,83.207,83.17,10.70572386]
[1770998039474,38.78,83.208,83.16,10.70572386]
[1770998039475,0.4799474,83.199,83.16,10.70572386]
[1770998039653,38.78,83.198,83.16,10.70572386]
[1770998039949,38.78,83.198,83.136,34.24]
[1770998039950,10.70572386,83.18,83.142,12.02751978]
[1770998040157,39.2599474,83.179,83.142,12.02751978]
[1770998040353,0.4799474,83.169,83.13,10.70572386]
[1770998040660,10.70572386,83.17,83.131,0.49119612]
[1770998040834,10.70572386,83.2,83.16,10.70572386]
[1770998041031,12.01937523,83.199,83.17,10.70572386]
[1770998041236,12.01937523,83.199,83.171,0.49119612]
[1770998041436,0.47778369,83.189,83.15,44.94572386]
[1770998041648,0.47778369,83.189,83.151,0.49119612]
[1770998042330,0.47778369,83.187,83.151,0.49119612]
[1770998042535,42.07337596,83.188,83.13,30.07337904]
[1770998042536,0.47778369,83.179,83.143,12.02746823]
[1770998042738,0.47778369,83.179,83.137,0.49119612]
[1770998042952,0.47778369,83.169,83.14,10.72835932]
[1770998043254,42.07337596,83.188,83.16,10.72835932]
[1770998043461,38.8,83.187,83.16,11.21955544]
[1770998043661,0.47778369,83.186,83.15,10.72835932]
[1770998044250,64.70921836,83.206,83.138,42.09867929]
[1770998044251,12.01966417,83.197,83.161,0.49119612]
[1770998044454,12.01966417,83.197,83.17,10.72835932]
[1770998044938,10.72835932,83.22,83.181,0.49119612]
[1770998045142,48.03633621,83.271,83.19,10.72835932]
[1770998045143,0.47778369,83.225,83.19,10.72835932]
[1770998045343,0.47778369,83.225,83.181,0.49119612]
[1770998045344,0.47778369,83.219,83.181,0.49119612]
[1770998045562,0.47778369,83.219,83.162,42.0865299]
[1770998045563,38.82,83.218,83.191,0.49119612]
[1770998045744,12.01504283,83.229,83.201,0.49119612]
[1770998045948,12.01412812,83.236,83.21,10.72835932]
[1770998046669,38.82,83.239,83.21,10.72835932]
[1770998046670,38.82,83.239,83.211,0.49119612]
[1770998046982,0.47778369,83.264,83.221,0.49119612]
[1770998047164,0.47778369,83.264,83.211,12.01764189]
[1770998047165,12.00927115,83.269,83.231,0.49119612]
[1770998047459,0.47778369,83.259,83.22,10.72835932]
[1770998047961,0.47778369,83.249,83.211,34.2]
[1770998048143,0.47778369,83.247,83.21,10.72835932]
[1770998048340,0.47778369,83.246,83.21,10.72835932]
[1770998048654,0.47778369,83.244,83.2,10.72835932]
[1770998048967,0.47778369,83.244,83.21,10.72835932]
[1770998049263,0.47778369,83.244,83.211,0.49119612]
[1770998049451,42.04456723,83.245,83.22,10.72835932]
[1770998049764,0.47778369,83.239,83.2,11.21955544]
[1770998050066,0.47778369,83.237,83.19,22.74900128]
[1770998050266,0.47778369,83.237,83.2,10.72835932]
[1770998050467,0.47778369,83.237,83.191,0.49119612]
[1770998050648,0.47778369,83.235,83.191,0.49119612]
[1770998050846,0.47778369,83.219,83.179,0.49119612]
[1770998051170,0.47778369,83.219,83.18,10.72835932]
[1770998051463,0.47778369,83.219,83.166,12.0240506]
[1770998051464,0.47778369,83.209,83.17,10.72835932]
[1770998051671,0.47778369,83.207,83.17,10.72835932]
[1770998051865,0.47778369,83.205,83.17,10.72835932]
[1770998052665,0.47778369,83.229,83.181,0.49119612]
[1770998052872,0.47778369,83.227,83.181,0.49119612]
[1770998053265,0.47778369,83.227,83.171,12.02342162]
[1770998053266,12.01504283,83.229,83.201,0.49119612]
[1770998053456,38.86,83.228,83.201,0.49119612]
[1770998054270,38.86,83.228,83.171,42.08197568]
[1770998054271,12.01302211,83.243,83.211,0.49119612]
[1770998055075,12.01201201,83.25,83.22,10.72835932]
[1770998055252,0.47778369,83.249,83.213,0.49119612]
[1770998055453,39.35778369,83.249,83.213,0.49119612]
[1770998055853,12.01201201,83.25,83.221,0.49119612]
[1770998056068,38.88,83.249,83.221,0.49119612]
[1770998056266,0.47778369,83.248,83.21,11.21955544]
[1770998056467,0.47778369,83.248,83.211,12.01764189]
[1770998056970,38.88,83.249,83.221,0.49119612]
[1770998057866,38.92,83.249,83.221,0.49119612]
[1770998058472,12.01085781,83.258,83.231,0.49119612]
[1770998059181,0.2,83.27,83.241,0.49119612]
[1770998059352,51.14926464,83.27,83.241,0.49119612]
[1770998059670,12.20926464,83.27,83.25,10.72835932]
[1770998060570,0.2,83.28,83.25,11.21955544]
[1770998060571,12.0078291,83.279,83.25,11.21955544]
[1770998060778,0.47778369,83.278,83.241,0.49119612]
[1770998061368,0.47778369,83.276,83.24,10.72835932]
[1770998061677,0.47778369,83.276,83.212,4.61729252]
[1770998061678,4.61729252,83.247,83.185,0.49119612]
[1770998061878,0.47778369,83.245,83.201,0.49119612]
[1770998062179,12.01143488,83.254,83.23,10.72835932]
[1770998062477,12.01143488,83.254,83.23,11.21955544]
[1770998062787,38.96,83.255,83.24,10.72835932]
[1770998062964,38.96,83.257,83.24,10.72835932]
[1770998063280,38.96,83.257,83.231,0.49119612]
[1770998063464,38.98,83.256,83.23,10.72835932]
[1770998063656,38.98,83.256,83.231,0.49119612]
[1770998063856,38.98,83.262,83.24,10.72835932]
[1770998064054,0.47778369,83.261,83.221,12.01619783]
[1770998064672,12.48835299,83.26,83.222,0.49119612]
[1770998064985,53.24313556,83.26,83.222,0.49119612]
[1770998065156,42.51477624,83.26,83.222,0.49119612]
[1770998065358,53.24313556,83.26,83.211,0.49119612]
[1770998065569,10.72835932,83.25,83.211,0.49119612]
[1770998065976,42.51477624,83.26,83.221,0.49119612]
[1770998066286,10.72835932,83.25,83.211,12.5087151]
[1770998066595,42.51477624,83.26,83.24,10.72835932]
[1770998066596,12.48835299,83.26,83.24,10.72835932]
[1770998066765,12.48835299,83.26,83.241,0.49119612]
[1770998066963,12.00832933,83.276,83.252,0.49119612]
[1770998067161,0.2,83.28,83.261,0.49119612]
[1770998067364,42.02740186,83.279,83.226,12.01539559]
[1770998067693,10.72835932,83.27,83.23,10.72835932]
[1770998068062,10.72835932,83.27,83.23,11.21955544]
[1770998068473,10.72835932,83.26,83.22,10.72835932]
[1770998068670,39.0,83.259,83.22,10.72835932]
[1770998068865,12.01085781,83.258,83.22,11.21955544]
[1770998069071,12.01085781,83.258,83.221,0.49119612]
[1770998069266,42.03800234,83.258,83.221,0.49119612]
[1770998069488,39.36854096,83.257,83.221,0.49119612]
[1770998069673,0.36854096,83.256,83.221,0.49119612]
[1770998069881,0.36854096,83.256,83.22,10.72835932]
[1770998070571,0.36854096,83.249,83.215,0.49119612]
[1770998070773,39.02,83.248,83.215,0.49119612]
[1770998070974,10.72835932,83.23,83.19,11.1916945]
[1770998071185,10.72835932,83.23,83.191,0.46333518]
[1770998071379,39.04,83.229,83.191,0.46333518]
[1770998071589,10.72835932,83.22,83.18,11.1916945]
[1770998071887,39.04,83.219,83.181,0.46333518]
[1770998072401,0.36854096,83.211,83.17,10.72835932]
[1770998072573,10.72835932,83.21,83.171,0.46333518]
[1770998072887,12.01807518,83.208,83.181,0.46333518]
[1770998073081,39.02,83.207,83.181,0.46333518]
[1770998073587,10.72835932,83.2,83.17,0.46333518]
[1770998073769,39.04,83.199,83.17,0.46333518]
[1770998074584,10.72835932,83.2,83.16,10.72835932]
[1770998074891,39.06,83.199,83.161,0.46333518]
[1770998075290,12.01951969,83.198,83.161,0.46333518]
[1770998075580,39.06,83.197,83.171,0.46333518]
[1770998075966,0.36854096,83.211,83.162,12.02472283]
[1770998075967,30.04174758,83.218,83.181,0.46333518]
[1770998076194,39.08,83.217,83.191,0.46333518]
[1770998076877,12.01359939,83.239,83.211,0.45782855]
[1770998077185,42.04759787,83.239,83.211,0.45782855]
[1770998077389,12.01244489,83.247,83.213,0.45782855]
[1770998077589,39.1,83.246,83.213,0.45782855]
[1770998080291,10.72835932,83.24,83.213,0.45782855]
[1770998080504,0.36854096,83.244,83.16,0.45782855]
[1770998080670,42.04456723,83.245,83.122,0.45782855]
[1770998080671,0.36854096,83.2,83.122,0.45782855]
[1770998080990,0.36854096,83.2,83.154,0.45782855]
[1770998080991,10.72835932,83.19,83.154,0.45782855]
[1770998081194,10.72835932,83.18,83.154,0.45782855]
[1770998081385,10.72835932,83.17,83.14,0.45782855]
[1770998081696,10.72835932,83.16,83.129,0.45782855]
[1770998081881,39.12,83.159,83.13,10.72835932]
[1770998082070,39.12,83.159,83.14,10.72835932]
[1770998082269,51.14521507,83.159,83.14,10.72835932]
[1770998082473,51.14521507,83.159,83.131,0.45782855]
[1770998083393,42.08810663,83.159,83.11,0.1]
[1770998083578,42.08810663,83.159,83.12,10.72835932]
[1770998083579,10.72835932,83.15,83.12,10.72835932]
[1770998083782,39.14,83.158,83.12,10.72835932]
[1770998083981,42.08810663,83.159,83.13,10.72835932]
[1770998083982,12.02521507,83.159,83.13,10.72835932]
[1770998084389,39.16,83.162,83.13,10.72835932]
[1770998085479,39.16,83.162,83.131,0.45782855]
[1770998086313,51.20371075,83.169,83.141,0.45782855]
[1770998086484,0.47701882,83.186,83.14,10.72835932]
[1770998086485,51.22226523,83.179,83.151,0.45782855]
[1770998087987,81.27792831,83.179,83.141,0.45782855]
[1770998088299,12.02071239,83.19,83.161,0.45782855]
[1770998088507,51.26071239,83.19,83.162,0.45782855]
[1770998088700,51.26071239,83.19,83.151,0.45782855]
[1770998088701,61.98907171,83.19,83.151,0.45782855]
[1770998089002,0.47701882,83.189,83.151,12.48414212]
[1770998089305,81.31240129,83.19,83.16,10.72835932]
[1770998089900,48.06387414,83.223,83.171,0.45782855]
[1770998089901,12.01951969,83.198,83.171,0.45782855]
[1770998090089,39.26,83.197,83.16,11.18618787]
[1770998090291,39.26,83.197,83.161,0.45782855]
[1770998090489,12.01980864,83.196,83.17,10.72835932]
[1770998091713,10.72835932,83.19,83.161,0.45782855]
[1770998091881,12.01980864,83.196,83.17,10.72835932]
[1770998092513,10.72835932,83.22,83.18,10.72835932]
[1770998092806,39.3,83.223,83.191,0.45782855]
[1770998092994,12.01504283,83.229,83.2,10.72835932]
[1770998093395,39.28,83.228,83.2,10.72835932]
[1770998094121,12.01351008,83.24,83.211,0.45782855]
[1770998094406,51.29351008,83.24,83.211,0.45782855]
[1770998095598,39.3,83.246,83.23,10.72835932]
[1770998095920,39.3,83.245,83.212,12.01749747]
[1770998096415,10.72835932,83.24,83.21,10.72835932]
[1770998097109,12.01359939,83.239,83.208,0.45782855]
[1770998097293,12.01359939,83.239,83.21,10.72835932]
[1770998097608,42.04759787,83.239,83.21,10.72835932]
[1770998098200,10.72835932,83.23,83.2,10.72835932]
[1770998098408,42.04759787,83.239,83.211,0.45782855]
[1770998098715,42.03749744,83.259,83.22,11.18618787]
[1770998098913,42.03749744,83.259,83.23,10.72835932]
[1770998099101,42.51552608,83.257,83.221,0.45782855]
[1770998099297,42.51552608,83.257,83.15,48.10567542]
[1770998099298,10.72835932,83.24,83.206,0.45782855]
[1770998099498,10.72835932,83.23,83.206,0.45782855]
[1770998099714,39.34,83.246,83.22,11.18618787]
[1770998100022,39.34,83.246,83.221,0.45782855]
[1770998100188,12.00941538,83.268,83.231,0.45782855]
[1770998100396,39.34,83.267,83.241,0.45782855]
[1770998100704,39.34,83.267,83.231,0.45893036]
[1770998100705,10.72835932,83.26,83.231,0.45893036]
[1770998100913,39.36,83.259,83.231,0.45893036]
[1770998101290,39.36,83.258,83.231,0.45893036]
[1770998101612,39.36,83.258,83.211,0.45893036]
[1770998101613,0.4889886,83.249,83.211,0.45893036]
[1770998101829,42.03749744,83.259,83.221,0.45893036]
[1770998102115,12.01071355,83.259,83.231,0.45893036]
[1770998102417,30.02345672,83.269,83.241,0.45893036]
[1770998102418,39.38,83.258,83.241,0.45893036]
[1770998102812,39.38,83.258,83.231,0.45893036]
[1770998103110,11.21734792,83.25,83.219,0.45893036]
[1770998103524,12.0121563,83.249,83.22,11.18728968]
[1770998103697,51.3921563,83.249,83.221,0.45893036]
[1770998103899,12.0121563,83.249,83.221,0.45893036]
[1770998104114,39.38,83.248,83.221,0.45893036]
[1770998104293,12.01071355,83.259,83.221,0.45893036]
[1770998104492,0.4889886,83.282,83.25,10.72835932]
[1770998104696,0.02636951,83.28,83.27,10.72835932]
[1770998105000,0.02636951,83.28,83.26,10.69916384]
[1770998105204,0.02636951,83.28,83.27,10.69916384]
[1770998105413,0.02636951,83.28,83.26,10.69916384]
[1770998105913,0.02636951,83.28,83.261,12.01042504]
[1770998106208,30.01268585,83.299,83.261,12.01042504]
[1770998106209,0.5,83.317,83.27,10.69916384]
[1770998106412,12.00249651,83.316,83.29,10.69916384]
[1770998106597,30.00042579,83.333,83.3,10.69916384]
[1770998106598,12.00143262,83.324,83.3,10.69916384]
[1770998106802,12.00060679,83.33,83.3,10.69916384]
[1770998107026,10.69916384,83.32,83.275,33.78]
[1770998107198,0.5,83.319,83.28,10.69916384]
[1770998107391,12.0036491,83.308,83.271,12.00898271]
[1770998107596,0.5,83.307,83.271,12.00898271]
[1770998108525,0.5,83.299,83.261,12.01042504]
[1770998108697,10.69916384,83.29,83.26,10.69916384]
[1770998108895,0.5,83.289,83.26,10.69916384]
[1770998109518,12.00548219,83.296,83.27,10.69916384]
[1770998109916,0.5,83.307,83.27,10.69916384]